fUST/lending_fUST_20250305
["ID","MTS","AMOUNT","RATE_DAILY","PERIOD"]
[355399929,1741105833810,-154.76416043,0.00030542,2]
[355399931,1741105833824,-853.34724677,0.00030542,2]
[355399933,1741105833835,-352.564741,0.00031322,2]
[355399935,1741105833847,-420.0,0.00032068,2]
[355399937,1741105833858,-1400.0,0.00032878,2]
[355399939,1741105833868,-500.0,0.00033973,5]
[355399942,1741105833883,-500.0,0.00033973,5]
[355399944,1741105833894,-500.0,0.00033973,5]
[355399946,1741105833904,-500.0,0.00033973,5]
[355399948,1741105833914,-500.0,0.00033973,2]
[355399950,1741105833924,-1007.62972549,0.0003399,2]
[355399952,1741105833937,-6099.33092877,0.0003399,2]
[355399954,1741105833947,-253.0,0.00034,2]
[355399956,1741105833957,-21029.86727547,0.00034,2]
[355399958,1741105833969,-27845.43059643,0.00034,2]
[355399963,1741105834007,-500.0,0.00041095,120]
[355399966,1741105834038,-500.0,0.00041095,120]
[355399970,1741105834070,-500.0,0.00041095,120]
[355399974,1741105834100,-500.0,0.00041369,120]
[355399977,1741105834136,-500.0,0.00041643,120]
[355399981,1741105834168,-500.0,0.00041917,120]
[355399985,1741105834199,-500.0,0.00042191,120]
[355399988,1741105834228,-500.0,0.00042465,120]
[355399992,1741105834257,-480.953761,0.00042739,120]
[355399996,1741105834292,-895519.046239,0.00043,90]
[355400081,1741105838734,-500.0,0.00033998,7]
[355400082,1741105838746,-500.0,0.00033998,7]
[355400083,1741105838756,-500.0,0.00033998,7]
[355400084,1741105838766,-500.0,0.00033998,7]
[355400085,1741105838777,-500.0,0.00033998,7]
[355400086,1741105838789,-500.0,0.00033998,7]
[355400087,1741105838800,-500.0,0.00033998,7]
[355400088,1741105838810,-500.0,0.00033998,7]
[355400089,1741105838820,-412.25196442,0.00033998,7]
[355400090,1741105838830,-500.0,0.00033998,7]
[355400091,1741105838839,-500.0,0.00033998,7]
[355400092,1741105838849,-500.0,0.00033998,7]
[355400093,1741105838859,-650.0,0.00033998,7]
[355400094,1741105838869,-500.0,0.00033998,7]
[355400095,1741105838879,-500.0,0.00033998,7]
[355400096,1741105838893,-500.0,0.00033998,2]
[355400097,1741105838903,-500.0,0.00033998,7]
[355400098,1741105838913,-500.0,0.00033998,2]
[355400099,1741105838923,-500.0,0.00033998,2]
[355400100,1741105838934,-500.0,0.00033998,7]
[355400101,1741105838944,-500.0,0.00033998,2]
[355400102,1741105838955,-500.0,0.00033998,7]
[355400103,1741105838965,-500.0,0.00033998,7]
[355400104,1741105838975,-500.0,0.00033998,7]
[355400105,1741105838985,-65740.47469862,0.00034,2]
[355400106,1741105838996,-196.34,0.00034,7]
[355400107,1741105839006,-587.0,0.00034572,2]
[355400108,1741105839018,-500.0,0.00034973,5]
[355400109,1741105839030,-500.0,0.00034973,5]
[355400110,1741105839040,-500.0,0.00034973,5]
[355400111,1741105839050,-500.0,0.00034973,5]
[355400112,1741105839060,-500.0,0.00034973,5]
[355400113,1741105839070,-500.0,0.00034973,5]
[355400114,1741105839083,-164.89419984,0.00034973,5]
[355400115,1741105839093,-500.0,0.00034973,2]
[355400116,1741105839106,-500.0,0.00034973,5]
[355400117,1741105839118,-500.0,0.00034973,5]
[355400118,1741105839128,-500.0,0.00034973,5]
[355400119,1741105839144,-408.84913774,0.00034999,7]
[355400120,1741105839155,-500.0,0.00034999,7]
[355400121,1741105839165,-226.09182864,0.00034999,7]
[355400122,1741105839176,-10513.86014074,0.00035,2]
[355400124,1741105839186,-857.66665042,0.00035,2]
[355400126,1741105839197,-39280.77996743,0.00035,2]
[355400127,1741105839209,-1214.09084517,0.00035,2]
[355400128,1741105839225,-389.35083186,0.00035,2]
[355400129,1741105839238,-15394.6042101,0.00035,2]
[355400130,1741105839248,-7029.8998859,0.00036,2]
[355400131,1741105839258,-200.70920239,0.0003621,2]
[355400132,1741105839269,-261.06372902,0.0003624,2]
[355400133,1741105839279,-302.0,0.00036956,2]
[355400134,1741105839289,-1068.82825851,0.00036956,2]
[355400135,1741105839300,-253.0,0.00037,2]
[355400136,1741105839311,-306.19097991,0.0003738,5]
[355400137,1741105839323,-193.80902009,0.0003738,5]
[355400138,1741105839334,-625.97698097,0.0003738,2]
[355400139,1741105839344,-85.19524286,0.0003738,5]
[355400140,1741105839357,-414.80475714,0.0003738,5]
[355400141,1741105839368,-36.33391486,0.000376,7]
[355400142,1741105839380,-160.00608514,0.000376,7]
[355400143,1741105839395,-918.10186986,0.00037856,2]
[355400144,1741105839408,-335.84328649,0.00037856,2]
[355400145,1741105839420,-500.0,0.00038085,5]
[355400146,1741105839430,-244.48653617,0.00038118,5]
[355400147,1741105839441,-163.17327225,0.00038356,2]
[355400148,1741105839453,-796.0,0.000384,2]
[355400149,1741105839463,-14213.9213085,0.00038848,3]
[355400150,1741105839472,-160.0,0.0003885,3]
[355400151,1741105839482,-7106.96065426,0.00038863,3]
[355400152,1741105839493,-500.0,0.00038873,5]
[355400153,1741105839503,-540.087,0.00038874,2]
[355400154,1741105839513,-1956.0,0.00038874,2]
[355400155,1741105839523,-2276.0,0.00038874,2]
[355400156,1741105839534,-150.0,0.00038902,2]
[355400157,1741105839544,-1253.94515635,0.00039196,2]
[355400158,1741105839555,-500.0,0.00039285,7]
[355400159,1741105839566,-1000.0,0.00039452,5]
[355400160,1741105839576,-500.0,0.00039452,5]
[355400161,1741105839588,-500.0,0.00039452,2]
[355400162,1741105839599,-500.0,0.00039559,7]
[355400163,1741105839608,-500.0,0.00039833,7]
[355400164,1741105839618,-500.0,0.00039973,5]
[355400165,1741105839629,-500.00034075,0.00039973,5]
[355400166,1741105839645,-501.75474954,0.00039973,5]
[355400167,1741105839656,-500.0,0.00039973,5]
[355400168,1741105839668,-500.0,0.00039973,5]
[355400169,1741105839681,-500.0,0.00039973,5]
[355400170,1741105839692,-500.0,0.00039973,5]
[355400171,1741105839704,-500.0,0.00039973,5]
[355400172,1741105839717,-418.66372837,0.00039973,5]
[355400173,1741105839729,-500.0,0.00039973,5]
[355400174,1741105839741,-500.0,0.00039973,5]
[355400175,1741105839751,-169.85742004,0.00039973,5]
[355400176,1741105839763,-253.0,0.0004,2]
[355400177,1741105839773,-250.0,0.0004,2]
[355400178,1741105839785,-499.999999,0.0004,2]
[355400179,1741105839796,-500.0,0.00040107,7]
[355400180,1741105839807,-150.0,0.00040272,2]
[355400181,1741105839819,-500.0,0.00040381,7]
[355400182,1741105839832,-1000.0,0.00040452,5]
[355400183,1741105839843,-500.0,0.00040452,5]
[355400184,1741105839856,-1000.0,0.00040452,5]
[355400185,1741105839867,-1000.0,0.00040452,5]
[355400186,1741105839878,-719.85998727,0.00040452,5]
[355400187,1741105839896,-1000.0,0.00040452,5]
[355400188,1741105839909,-1253.94515635,0.00040536,28]
[355400189,1741105839920,-500.0,0.00040655,7]
[355400190,1741105839937,-502.1267562,0.00040929,7]
[355400191,1741105839949,-1549.86714871,0.00040995,2]
[355400192,1741105839960,-3000.0,0.00040995,2]
[355400193,1741105839971,-24066.94994489,0.00041,2]
[355400194,1741105839982,-4094.39094723,0.00041063,3]
[355400195,1741105839996,-3012.56970703,0.00041063,3]
[355400196,1741105840007,-500.0,0.00041073,5]
[355400197,1741105840017,-586.50788674,0.00041073,5]
[355400198,1741105840028,-500.0,0.00041073,5]
[355400199,1741105840038,-199.28218752,0.00041073,5]
[355400200,1741105840048,-539.60704792,0.00041073,5]
[355400201,1741105840059,-500.0,0.00041073,5]
[355400202,1741105840186,-396.5377788,0.00041073,5]
[355400203,1741105840198,-500.0,0.00041073,5]
[355400204,1741105840209,-7106.96065426,0.00041085,3]
[355400205,1741105840219,-730.76304528,0.00041086,7]
[355400206,1741105840230,-171.844965,0.00041095,14]
[355400207,1741105840241,-171.844965,0.00041095,14]
[355400208,1741105840252,-150.0,0.00041095,2]
[355400209,1741105840262,-1000.0,0.00041095,20]
[355400210,1741105840272,-500.0,0.00041095,5]
[355400211,1741105840283,-150.0,0.00041095,2]
[355400212,1741105840295,-500.0,0.00041095,15]
[355400213,1741105840307,-500.0,0.00041095,2]
[355400214,1741105840317,-500.0,0.00041095,6]
[355400215,1741105840328,-160.0,0.00041095,7]
[355400216,1741105840338,-39780.86,0.00041095,7]
[355400217,1741105840349,-500.0,0.00041095,120]
[355400218,1741105840360,-500.0,0.00041095,120]
[355400219,1741105840370,-500.0,0.00041095,120]
[355400220,1741105840381,-150.0,0.00041096,10]
[355400221,1741105840396,-334.537981,0.00041096,2]
[355400222,1741105840406,-334.537981,0.00041096,2]
[355400223,1741105840417,-500.0440743,0.0004136,10]
[355400224,1741105840427,-500.0,0.0004136,10]
[355400225,1741105840436,-1022.96675893,0.00041369,20]
[355400226,1741105840446,-500.0,0.00041369,6]
[355400227,1741105840456,-18254.03646831,0.00041369,7]
[355400286,1741105842855,-316.425,0.000349,7]
[355400287,1741105842913,-211.84853549,0.000349,7]
[355400288,1741105842924,-397.0,0.00037827,2]
[355400289,1741105842934,-196.34,0.000396,7]
[355400290,1741105842943,-196.34,0.00041,7]
[355400291,1741105842953,-500.0,0.00041095,120]
[355400292,1741105842963,-500.0,0.00041095,120]
[355400293,1741105842972,-500.0,0.00041095,120]
[355400296,1741105842982,-161.94647001,0.00041095,30]
[355400297,1741105842999,-1291.25352999,0.00041095,30]
[355400298,1741105843011,-13836.90870425,0.00041369,7]
[355400316,1741105845806,-4368.71615643,0.00041369,7]
[355400329,1741105853664,-500.0,0.00041095,120]
[355400330,1741105853695,-500.0,0.00041095,120]
[355400331,1741105853725,-500.0,0.00041095,120]
[355400332,1741105853755,-500.0,0.00041095,120]
[355400333,1741105853786,-500.0,0.00041369,120]
[355400334,1741105853815,-1453.2,0.00041369,30]
[355400335,1741105853844,-500.0,0.00041643,120]
[355400336,1741105853872,-1453.2,0.00041643,30]
[355400337,1741105853900,-623.7,0.00041897,30]
[355400338,1741105853928,-650.65,0.00041907,30]
[355400339,1741105853958,-500.0,0.00041917,120]
[355400340,1741105853989,-1453.2,0.00041917,30]
[355400341,1741105854026,-323.24292866,0.00042191,120]
[355400342,1741105854059,-1453.2,0.00042191,30]
[355400343,1741105854093,-1453.2,0.00042465,30]
[355400344,1741105854128,-196.34,0.000427,30]
[355400345,1741105854162,-1453.2,0.00042739,30]
[355400346,1741105854196,-885986.86707134,0.00043,90]
[355400347,1741105857353,-500.0,0.00041095,120]
[355400348,1741105857388,-899500.0,0.00043,90]
[355400349,1741105863043,-500.0,0.00041095,120]
[355400350,1741105863082,-735880.54645991,0.00043,90]
[355400351,1741105863117,-5000.0,0.00043,30]
[355400352,1741105863148,-6000.0,0.00043,30]
[355400353,1741105863179,-151.0,0.00043,120]
[355400354,1741105863216,-2000.0,0.00043,60]
[355400355,1741105863248,-151.0,0.00043,120]
[355400356,1741105863281,-151.0,0.00043,120]
[355400357,1741105863312,-456.735376,0.00043,120]
[355400358,1741105863342,-456.735376,0.00043,120]
[355400359,1741105863373,-195.758114,0.00043,120]
[355400360,1741105863405,-195.758114,0.00043,120]
[355400361,1741105863442,-230.45892,0.00043,120]
[355400362,1741105863474,-151.0,0.00043,120]
[355400363,1741105863505,-151.0,0.00043,120]
[355400364,1741105863533,-318.0,0.00043,90]
[355400365,1741105863561,-151.0,0.00043,120]
[355400366,1741105863591,-151.0,0.00043,120]
[355400367,1741105863621,-151.0,0.00043,120]
[355400368,1741105863650,-151.0,0.00043,120]
[355400369,1741105863678,-237.235985,0.00043,120]
[355400370,1741105863710,-482.201552,0.00043,120]
[355400371,1741105863740,-482.201552,0.00043,120]
[355400372,1741105863771,-616.372589,0.00043,120]
[355400373,1741105863802,-616.372589,0.00043,120]
[355400374,1741105863833,-151.0,0.00043,120]
[355400375,1741105863860,-57708.18670422,0.00043,30]
[355400376,1741105863890,-151.0,0.00043,120]
[355400377,1741105863921,-151.0,0.00043,120]
[355400378,1741105863955,-151.0,0.00043,120]
[355400379,1741105863986,-151.0,0.00043,120]
[355400380,1741105864016,-367.53,0.00043,30]
[355400381,1741105864048,-151.0,0.00043,120]
[355400382,1741105864078,-151.0,0.00043,120]
[355400383,1741105864114,-151.0,0.00043,120]
[355400384,1741105864144,-150.0,0.00043012,30]
[355400385,1741105864174,-1000.0,0.00043013,120]
[355400386,1741105864208,-500.0,0.00043013,120]
[355400387,1741105864238,-500.0,0.00043013,120]
[355400388,1741105864267,-500.0,0.00043013,120]
[355400389,1741105864299,-500.0,0.00043013,120]
[355400390,1741105864330,-696.57,0.00043013,120]
[355400391,1741105864360,-500.0,0.00043013,120]
[355400392,1741105864391,-500.0,0.00043013,120]
[355400393,1741105864422,-768.96,0.00043013,120]
[355400394,1741105864458,-500.0,0.00043013,120]
[355400395,1741105864490,-4600.61,0.00043013,120]
[355400396,1741105864522,-699.41,0.00043013,120]
[355400397,1741105864553,-500.0,0.00043013,120]
[355400398,1741105864586,-2239.84,0.00043013,120]
[355400399,1741105864617,-482.201552,0.00043013,120]
[355400400,1741105864647,-482.201552,0.00043013,120]
[355400401,1741105864678,-877.62,0.00043013,120]
[355400402,1741105864712,-616.372589,0.00043013,120]
[355400403,1741105864742,-542.23,0.00043013,120]
[355400404,1741105864772,-616.372589,0.00043013,120]
[355400405,1741105864800,-151.0,0.00043013,120]
[355400406,1741105864829,-866.1,0.00043013,120]
[355400407,1741105864856,-534.78,0.00043013,120]
[355400408,1741105864885,-151.0,0.00043013,120]
[355400409,1741105864914,-500.0,0.00043013,120]
[355400410,1741105864947,-151.0,0.00043013,120]
[355400411,1741105865089,-151.0,0.00043013,120]
[355400412,1741105865120,-561.19,0.00043013,120]
[355400413,1741105865150,-810.98,0.00043013,120]
[355400414,1741105865180,-1169.18,0.00043013,120]
[355400415,1741105865214,-1459.67,0.00043013,120]
[355400416,1741105865243,-500.0,0.00043013,120]
[355400417,1741105865273,-500.0,0.00043013,120]
[355400418,1741105865301,-500.0,0.00043013,120]
[355400419,1741105865334,-701.01,0.00043013,120]
[355400420,1741105865367,-2585.09,0.00043013,120]
[355400421,1741105865397,-500.0,0.00043013,120]
[355400422,1741105865427,-500.0,0.00043013,120]
[355400423,1741105865460,-1453.2,0.00043013,30]
[355400424,1741105865487,-318.0,0.00043014,90]
[355400425,1741105865514,-356.0733927,0.00043014,30]
[355400426,1741105865543,-356.0733927,0.00043014,30]
[355400427,1741105865574,-356.0733927,0.00043014,30]
[355400428,1741105865606,-356.0733927,0.00043014,30]
[355400429,1741105865635,-356.0733927,0.00043014,30]
[355400430,1741105865665,-356.0733927,0.00043014,30]
[355400431,1741105865701,-356.0733927,0.00043014,30]
[355400432,1741105865731,-356.0733927,0.00043014,30]
[355400433,1741105865762,-356.0733927,0.00043014,30]
[355400434,1741105865793,-356.0733927,0.00043014,30]
[355400435,1741105865825,-356.0733927,0.00043014,30]
[355400436,1741105865858,-356.0733927,0.00043014,30]
[355400437,1741105865889,-356.0733927,0.00043014,30]
[355400438,1741105865921,-356.0733927,0.00043014,30]
[355400439,1741105865959,-356.0733927,0.00043014,30]
[355400440,1741105865990,-356.0733927,0.00043014,30]
[355400441,1741105866023,-356.0733927,0.00043014,30]
[355400442,1741105866055,-356.0733927,0.00043014,30]
[355400443,1741105866089,-356.0733927,0.00043014,30]
[355400444,1741105866120,-356.0733927,0.00043014,30]
[355400445,1741105866149,-356.0733927,0.00043014,30]
[355400446,1741105866179,-1136.64054549,0.00043096,38]
[355400447,1741105866213,-500.0,0.00043099,30]
[355400448,1741105866243,-1892.36,0.000431,30]
[355400449,1741105866274,-1634.5,0.000431,30]
[355400450,1741105866303,-2400.0,0.00043122,60]
[355400451,1741105866331,-160.04581397,0.00043123,120]
[355400452,1741105866360,-500.0,0.00043167,30]
[355400453,1741105866387,-171.844965,0.00043188,120]
[355400454,1741105866417,-171.844965,0.00043188,120]
[355400455,1741105866447,-1136.64054549,0.00043196,62]
[355400456,1741105866476,-500.0,0.00043221,30]
[355400457,1741105866505,-558.2342964,0.00043253,30]
[355400458,1741105866534,-558.2342964,0.00043253,30]
[355400459,1741105866566,-558.2342964,0.00043253,30]
[355400460,1741105866595,-500.0,0.00043268,30]
[355400461,1741105866623,-60324.0983717,0.00043287,120]
[355400462,1741105866653,-171.844965,0.00043287,120]
[355400463,1741105866681,-171.844965,0.00043287,120]
[355400464,1741105866713,-1000.0,0.00043287,120]
[355400465,1741105866742,-500.0,0.00043287,120]
[355400466,1741105866770,-500.0,0.00043287,120]
[355400467,1741105866800,-500.0,0.00043287,120]
[355400468,1741105866830,-500.0,0.00043287,120]
[355400469,1741105866859,-696.57,0.00043287,120]
[355400470,1741105866891,-500.0,0.00043287,120]
[355400471,1741105866920,-500.0,0.00043287,120]
[355400472,1741105866951,-768.96,0.00043287,120]
[355400473,1741105866982,-500.0,0.00043287,120]
[355400474,1741105867011,-4600.61,0.00043287,120]
[355400475,1741105867042,-699.41,0.00043287,120]
[355400476,1741105867070,-500.0,0.00043287,120]
[355400477,1741105867104,-2239.84,0.00043287,120]
[355400478,1741105867134,-877.62,0.00043287,120]
[355400479,1741105867164,-542.23,0.00043287,120]
[355400480,1741105867198,-866.1,0.00043287,120]
[355400481,1741105867227,-534.78,0.00043287,120]
[355400482,1741105867259,-500.0,0.00043287,120]
[355400483,1741105867290,-561.19,0.00043287,120]
[355400484,1741105867322,-810.98,0.00043287,120]
[355400485,1741105867354,-1169.18,0.00043287,120]
[355400486,1741105867382,-151.0,0.00043287,120]
[355400487,1741105867412,-1459.67,0.00043287,120]
[355400488,1741105867445,-500.0,0.00043287,120]
[355400489,1741105867474,-500.0,0.00043287,120]
[355400490,1741105867502,-151.0,0.00043287,120]
[355400491,1741105867637,-500.0,0.00043287,120]
[355400492,1741105867669,-701.01,0.00043287,120]
[355400493,1741105867704,-2585.09,0.00043287,120]
[355400494,1741105867736,-500.0,0.00043287,120]
[355400495,1741105867767,-500.0,0.00043287,120]
[355400496,1741105867796,-151.0,0.00043287,120]
[355400497,1741105867825,-183.8873,0.00043287,120]
[355400498,1741105867854,-1453.2,0.00043287,30]
[355400499,1741105867882,-500.0,0.0004329,30]
[355400500,1741105867913,-1136.64054549,0.00043296,37]
[355400501,1741105867947,-1138.81286558,0.000433,120]
[355400502,1741105867977,-150.7,0.000433,120]
[355400503,1741105868007,-150.0,0.000433,120]
[355400504,1741105868037,-500.0,0.000433,30]
[355400505,1741105868067,-150.0,0.000433,30]
[355400506,1741105868102,-500.0,0.00043332,30]
[355400507,1741105868132,-500.0,0.00043363,30]
[355400508,1741105868161,-1136.64054549,0.00043396,62]
[355400509,1741105868188,-356.0733927,0.00043397,30]
[355400510,1741105868220,-356.0733927,0.00043397,30]
[355400511,1741105868249,-356.0733927,0.00043397,30]
[355400512,1741105868277,-356.0733927,0.00043397,30]
[355400513,1741105868306,-1136.64054549,0.00043496,63]
[355400514,1741105868333,-1000.0,0.00043561,120]
[355400515,1741105868362,-151.0,0.00043561,120]
[355400516,1741105868391,-456.735376,0.00043561,120]
[355400517,1741105868423,-456.735376,0.00043561,120]
[355400518,1741105868459,-195.758114,0.00043561,120]
[355400519,1741105868487,-195.758114,0.00043561,120]
[355400520,1741105868514,-500.0,0.00043561,120]
[355400521,1741105868542,-151.0,0.00043561,120]
[355400522,1741105868574,-500.0,0.00043561,120]
[355400523,1741105868602,-500.0,0.00043561,120]
[355400524,1741105868633,-531.95206719,0.00043561,120]
[355400525,1741105868661,-696.57,0.00043561,120]
[355400526,1741105868689,-151.0,0.00043561,120]
[355400527,1741105868723,-151.0,0.00043561,120]
[355400528,1741105868752,-201.983338,0.00043561,120]
[355400529,1741105868779,-500.0,0.00043561,120]
[355400530,1741105868808,-151.0,0.00043561,120]
[355400531,1741105868836,-151.0,0.00043561,120]
[355400532,1741105868864,-500.0,0.00043561,120]
[355400533,1741105868892,-768.96,0.00043561,120]
[355400534,1741105868924,-500.0,0.00043561,120]
[355400535,1741105868952,-4600.61,0.00043561,120]
[355400536,1741105868984,-699.41,0.00043561,120]
[355400537,1741105869014,-500.0,0.00043561,120]
[355400538,1741105869047,-2239.84,0.00043561,120]
[355400539,1741105869078,-877.62,0.00043561,120]
[355400540,1741105869110,-542.23,0.00043561,120]
[355400541,1741105869140,-151.0,0.00043561,120]
[355400542,1741105869171,-866.1,0.00043561,120]
[355400543,1741105869204,-534.78,0.00043561,120]
[355400544,1741105869235,-151.0,0.00043561,120]
[355400545,1741105869266,-500.0,0.00043561,120]
[355400546,1741105869296,-561.19,0.00043561,120]
[355400547,1741105869326,-810.98,0.00043561,120]
[355400548,1741105869357,-151.0,0.00043561,120]
[355400549,1741105869389,-1169.18,0.00043561,120]
[355400550,1741105869421,-1459.67,0.00043561,120]
[355400551,1741105869453,-500.0,0.00043561,120]
[355400552,1741105869484,-500.0,0.00043561,120]
[355400553,1741105869517,-500.0,0.00043561,120]
[355400554,1741105869550,-701.01,0.00043561,120]
[355400555,1741105869582,-2585.09,0.00043561,120]
[355400556,1741105869612,-500.0,0.00043561,120]
[355400557,1741105869644,-500.0,0.00043561,120]
[355400558,1741105869676,-1453.2,0.00043561,30]
[355400559,1741105869711,-5000.0,0.00043567,30]
[355400560,1741105869741,-482.201552,0.00043567,120]
[355400561,1741105869772,-482.201552,0.00043567,120]
[355400562,1741105869806,-616.372589,0.00043567,120]
[355400563,1741105869838,-616.372589,0.00043567,120]
[355400564,1741105869868,-500.0,0.00043573,30]
[355400565,1741105869898,-1136.64054549,0.00043596,77]
[355400566,1741105869930,-224.849242,0.000436,120]
[355400567,1741105869968,-151.0,0.00043618,120]
[355400568,1741105870001,-151.0,0.0004367,120]
[355400569,1741105870144,-223.18988,0.0004367,120]
[355400570,1741105870177,-160.04581397,0.00043671,120]
[355400571,1741105870219,-1136.64054549,0.00043696,67]
[355400572,1741105870250,-5244.99,0.000437,30]
[355400573,1741105870281,-196.34,0.000437,30]
[355400574,1741105870311,-500.0,0.00043743,30]
[355400575,1741105870341,-500.0,0.00043743,30]
[355400576,1741105870370,-500.0,0.00043743,30]
[355400577,1741105870398,-401.21788263,0.00043743,30]
[355400578,1741105870427,-306.0,0.00043753,30]
[355400579,1741105870462,-151.0,0.00043781,110]
[355400580,1741105870494,-171.844965,0.00043781,120]
[355400581,1741105870524,-171.844965,0.00043781,120]
[355400582,1741105870555,-1136.64054549,0.00043796,79]
[355400583,1741105870585,-151.0,0.00043835,120]
[355400584,1741105870615,-297.56571544,0.00043835,120]
[355400585,1741105870646,-151.0,0.00043835,120]
[355400586,1741105870677,-500.0,0.00043835,120]
[355400587,1741105870713,-500.0,0.00043835,120]
[355400588,1741105870747,-500.0,0.00043835,120]
[355400589,1741105870781,-696.57,0.00043835,120]
[355400590,1741105870811,-500.0,0.00043835,120]
[355400591,1741105870840,-500.0,0.00043835,120]
[355400592,1741105870868,-768.96,0.00043835,120]
[355400593,1741105870900,-500.0,0.00043835,120]
[355400594,1741105870929,-4600.61,0.00043835,120]
[355400595,1741105870964,-699.41,0.00043835,120]
[355400596,1741105870995,-500.0,0.00043835,120]
[355400597,1741105871029,-2239.84,0.00043835,120]
[355400598,1741105871060,-877.62,0.00043835,120]
[355400599,1741105871093,-542.23,0.00043835,120]
[355400600,1741105871129,-866.1,0.00043835,120]
[355400601,1741105871160,-534.78,0.00043835,120]
[355400602,1741105871197,-500.0,0.00043835,120]
[355400603,1741105871229,-561.19,0.00043835,120]
[355400604,1741105871260,-810.98,0.00043835,120]
[355400605,1741105871292,-1169.18,0.00043835,120]
[355400606,1741105871326,-1459.67,0.00043835,120]
[355400607,1741105871358,-500.0,0.00043835,120]
[355400608,1741105871391,-500.0,0.00043835,120]
[355400609,1741105871421,-500.0,0.00043835,120]
[355400610,1741105871456,-701.01,0.00043835,120]
[355400611,1741105871489,-2585.09,0.00043835,120]
[355400612,1741105871522,-500.0,0.00043835,120]
[355400613,1741105871558,-500.0,0.00043835,120]
[355400614,1741105871593,-1453.2,0.00043835,30]
[355400615,1741105871626,-3789.829,0.00043836,120]
[355400616,1741105871659,-753.76469303,0.00043836,60]
[355400617,1741105871698,-500.0,0.00043836,31]
[355400618,1741105871740,-563.70485018,0.00043836,31]
[355400619,1741105871776,-1136.64054549,0.00043896,100]
[355400620,1741105871810,-500.0,0.00043897,30]
[355400621,1741105871845,-1892.36,0.000439,30]
[355400622,1741105871880,-156.50505,0.000439,31]
[355400623,1741105871925,-5123.62547146,0.0004398,120]
[355400624,1741105871963,-1136.64054549,0.00043996,96]
[355400625,1741105872001,-20000.0,0.00044,44]
[355400626,1741105872033,-1312.745204,0.00044,30]
[355400627,1741105872064,-251.97908667,0.00044,30]
[355400628,1741105872094,-22166.6965128,0.00044,120]
[355400629,1741105872126,-173.68346942,0.00044,120]
[355400630,1741105872158,-200.0,0.00044,120]
[355400631,1741105872186,-10000.0,0.00044,60]
[355400632,1741105872219,-290.0,0.00044,30]
[355400633,1741105872248,-367.53,0.00044,30]
[355400634,1741105872279,-151.0,0.00044,120]
[355400635,1741105872311,-156.50505,0.00044,90]
[355400636,1741105872340,-161.63,0.00044,30]
[355400637,1741105872372,-1634.5,0.00044,30]
[355400638,1741105872402,-5000.0,0.00044007,30]
[355400639,1741105872432,-1136.64054549,0.00044096,90]
[355400640,1741105872468,-200000.0,0.000441,60]
[355400641,1741105872498,-151.0,0.00044109,120]
[355400642,1741105872527,-195.758114,0.00044109,120]
[355400643,1741105872668,-195.758114,0.00044109,120]
[355400644,1741105872704,-500.0,0.00044109,120]
[355400645,1741105872745,-500.0,0.00044109,120]
[355400646,1741105872782,-500.0,0.00044109,120]